bitfinex/quotes_BTCUSD_20250829
["timestamp","ask_amount","ask_price","bid_price","bid_amount"]
[1756493972625,1.69406574,108380.0,108370.0,0.25255632]
[1756493975002,1.69406574,108380.0,108370.0,0.19255632]
[1756493977424,1.69604574,108380.0,108370.0,0.19255632]
[1756493978045,1.67228973,108380.0,108370.0,0.19255632]
[1756493978204,1.69604617,108380.0,108370.0,0.19255632]
[1756493980741,1.69604617,108380.0,108370.0,0.19044632]
[1756493980917,1.69604617,108380.0,108370.0,0.19255632]
[1756493981998,1.69604617,108380.0,108370.0,0.19040632]
[1756493982201,1.69604617,108380.0,108370.0,0.18721632]
[1756493982755,1.69604617,108380.0,108370.0,0.19040632]
[1756493983156,1.69604617,108380.0,108370.0,0.19251632]
[1756493983358,1.69604617,108380.0,108370.0,0.18721632]
[1756493984886,2.25505959,108380.0,108370.0,0.19040632]
[1756493985181,2.25506067,108380.0,108370.0,0.19040632]
[1756493986125,2.22518364,108380.0,108370.0,0.23499988]
[1756493986330,0.18456995,108360.0,108350.0,0.00319]
[1756493986535,0.18458698,108350.0,108340.0,0.1462643]
[1756493986754,1.32187202,108350.0,108340.0,0.34920339]
[1756493987591,1.34962602,108350.0,108340.0,0.34920339]
[1756493987762,1.34962602,108350.0,108340.0,0.34934684]
[1756493987983,1.34962602,108350.0,108340.0,0.35464684]
[1756493988170,1.34962602,108350.0,108340.0,0.35764684]
[1756493988581,1.34959741,108350.0,108340.0,0.35764684]
[1756493989136,1.34959741,108350.0,108340.0,0.20172684]
[1756493989340,0.79094966,108350.0,108340.0,0.19872684]
[1756493989548,0.79094966,108350.0,108340.0,0.35564684]
[1756493990837,0.79094966,108350.0,108340.0,0.35353684]
[1756493991041,0.79094966,108350.0,108340.0,0.35552684]
[1756493991986,0.78896966,108350.0,108340.0,0.35552684]
[1756493994408,0.60438268,108350.0,108340.0,0.54013086]
[1756493995041,0.04500359,108350.0,108340.0,0.54013086]
[1756493995244,0.60438268,108350.0,108340.0,0.54013086]
[1756493998615,0.04500359,108350.0,108340.0,0.54013086]
[1756493998825,0.60438268,108350.0,108340.0,0.54013086]
[1756493999041,0.60435325,108350.0,108340.0,0.54013086]
[1756493999625,0.79091951,108350.0,108340.0,0.19960684]
[1756493999944,0.79091951,108350.0,108340.0,0.35034684]
[1756494000170,0.79091951,108350.0,108340.0,0.35354684]
[1756494000384,1.6917786,108350.0,108340.0,0.16039977]
[1756494000619,0.57154042,108350.0,108340.0,0.31631977]
[1756494000825,1.13091951,108350.0,108340.0,0.31631977]
[1756494001456,1.13091951,108350.0,108340.0,0.24535977]
[1756494001667,1.13091951,108350.0,108340.0,0.27343575]
[1756494001894,1.13091951,108350.0,108340.0,0.27541575]
[1756494002106,1.12893951,108350.0,108340.0,0.27541575]
[1756494002940,0.94435253,108350.0,108340.0,0.27541575]
[1756494003360,1.12893951,108350.0,108340.0,0.27541575]
[1756494004031,1.12893951,108350.0,108340.0,0.46001977]
[1756494004242,0.38497344,108350.0,108340.0,0.46001977]
[1756494004476,0.60435253,108350.0,108340.0,0.53101977]
[1756494007566,0.60435253,108350.0,108340.0,0.37509977]
[1756494007732,0.60435253,108350.0,108340.0,0.53101977]
[1756494008154,0.58713309,108350.0,108340.0,0.53101977]
[1756494008404,0.6043528,108350.0,108340.0,0.53101977]
[1756494009019,0.5765988,108350.0,108340.0,0.53101977]
[1756494011395,0.6043488,108350.0,108340.0,0.53101977]
[1756494014045,0.78893578,108350.0,108340.0,0.34641575]
[1756494014254,0.6043488,108350.0,108340.0,0.37509977]
[1756494014430,0.6043488,108350.0,108340.0,0.53101977]
[1756494014663,0.78893578,108350.0,108340.0,0.53101977]
[1756494014868,0.78893578,108350.0,108340.0,0.19049575]
[1756494015070,0.79091578,108350.0,108340.0,0.18531575]
[1756494015312,0.79093004,108350.0,108340.0,0.34123575]
[1756494015523,0.79241004,108350.0,108340.0,0.18531575]
[1756494015731,1.69825405,108350.0,108340.0,0.24535977]
[1756494016189,1.13887496,108350.0,108340.0,0.24535977]
[1756494017234,1.69825405,108350.0,108340.0,0.00114345]
[1756494017440,1.85417405,108350.0,108340.0,0.00114345]
[1756494017662,1.85417405,108350.0,108340.0,0.15706345]
[1756494018711,1.85418305,108350.0,108340.0,0.15706345]
[1756494018923,1.85418305,108350.0,108340.0,0.00114345]
[1756494018924,1.88292759,108350.0,108340.0,0.00114345]
[1756494019127,1.97122391,108350.0,108340.0,0.00114345]
[1756494019339,1.78655937,108350.0,108340.0,0.00114345]
[1756494019495,1.69826305,108350.0,108340.0,0.00114345]
[1756494019707,1.85418305,108350.0,108340.0,0.00114345]
[1756494019903,1.85418305,108350.0,108340.0,0.00014345]
[1756494020105,1.85370305,108350.0,108340.0,0.00014345]
[1756494020289,1.85518305,108350.0,108340.0,0.00014345]
[1756494021579,1.85618305,108350.0,108340.0,0.00014345]
[1756494021786,1.88333406,108350.0,108340.0,0.00014345]
[1756494021997,2.01988094,108350.0,108340.0,0.00014345]
[1756494022415,1.3033622,108340.0,108330.0,0.0002]
[1756494022594,1.48299009,108340.0,108330.0,0.0002882]
[1756494022805,1.48645009,108340.0,108330.0,0.0002882]
[1756494023019,1.33053009,108340.0,108330.0,0.0002882]
[1756494023224,1.48645009,108340.0,108330.0,0.0002882]
[1756494023642,1.48745009,108340.0,108330.0,0.0002882]
[1756494024620,1.51521209,108340.0,108330.0,0.0002882]
[1756494025370,1.96571209,108340.0,108330.0,0.0002882]
[1756494025942,1.80831209,108340.0,108330.0,0.0002882]
[1756494026148,1.96423209,108340.0,108330.0,0.0054782]
[1756494026342,1.96423209,108340.0,108330.0,0.0002882]
[1756494027139,1.96571209,108340.0,108330.0,0.0002882]
[1756494027773,1.96427209,108340.0,108330.0,0.0002882]
[1756494027974,1.72964899,108340.0,108330.0,0.0002882]
[1756494028170,1.91425301,108340.0,108330.0,0.0002882]
[1756494028795,1.75829301,108340.0,108330.0,0.0002882]
[1756494028988,1.74103112,108340.0,108330.0,0.0054782]
[1756494029200,1.91418075,108340.0,108330.0,0.0054782]
[1756494029409,1.91418075,108340.0,108330.0,0.0002882]
[1756494029615,1.91418075,108340.0,108330.0,0.0054782]
[1756494030021,1.75822075,108340.0,108330.0,0.0054782]
[1756494030232,1.91418075,108340.0,108330.0,0.0054782]
[1756494030652,1.91318075,108340.0,108330.0,0.0054782]
[1756494030859,1.91318075,108340.0,108330.0,0.0035182]
[1756494031067,1.91418075,108340.0,108330.0,0.0002882]
[1756494031482,1.91318075,108340.0,108330.0,0.0002882]
[1756494031928,1.91218075,108340.0,108330.0,0.0002882]
[1756494032182,1.91218075,108340.0,108330.0,0.0022882]
[1756494035504,1.75622075,108340.0,108330.0,0.0022882]
[1756494035756,1.91218075,108340.0,108330.0,0.0022882]
[1756494035961,1.91218075,108340.0,108330.0,0.0055182]
[1756494036498,1.75622075,108340.0,108330.0,0.0055182]
[1756494036703,1.91218075,108340.0,108330.0,0.0074782]
[1756494036852,1.91218075,108340.0,108330.0,0.0055182]
[1756494037053,1.91218075,108340.0,108330.0,0.0022882]
[1756494037268,1.91218075,108340.0,108330.0,0.0074782]
[1756494037670,1.91218075,108340.0,108330.0,0.0022882]
[1756494039450,1.90573467,108340.0,108330.0,0.0022882]
[1756494039650,1.91217951,108340.0,108330.0,0.0022882]
[1756494040487,1.91217951,108340.0,108330.0,0.0055182]
[1756494041142,1.91217951,108340.0,108330.0,0.0022882]
[1756494041728,1.91217951,108340.0,108330.0,0.0055182]
[1756494043148,1.91217951,108340.0,108330.0,0.0022882]
[1756494043149,2.25217951,108340.0,108330.0,0.0022882]
[1756494044210,2.25217951,108340.0,108330.0,0.0055182]
[1756494044424,2.25217951,108340.0,108330.0,0.0074782]
[1756494044805,2.25217951,108340.0,108330.0,0.0022882]
[1756494046619,2.25222516,108340.0,108330.0,0.0022882]
[1756494047496,2.25222516,108340.0,108330.0,0.0055182]
[1756494047712,2.25222516,108340.0,108330.0,0.0074782]
[1756494049038,2.25222516,108340.0,108330.0,0.0022882]
[1756494050078,2.25222516,108340.0,108330.0,0.0073782]
[1756494050079,2.08782697,108340.0,108330.0,0.0073782]
[1756494050286,2.300285,108340.0,108330.0,0.0073782]
[1756494050490,2.301285,108340.0,108330.0,0.0073782]
[1756494050701,2.30128642,108340.0,108330.0,0.0073782]
[1756494050906,2.30029028,108340.0,108330.0,0.0073782]
[1756494051306,2.32015905,108340.0,108330.0,0.0073782]
[1756494051517,2.32015905,108340.0,108330.0,0.0053782]
[1756494052157,2.16419905,108340.0,108330.0,0.0053782]
[1756494052924,2.16419905,108340.0,108330.0,0.0063782]
[1756494053338,2.32213905,108340.0,108330.0,0.0063782]
[1756494057348,2.32213905,108340.0,108330.0,0.0012882]
[1756494057991,2.31715376,108340.0,108330.0,0.0012882]
[1756494058191,2.50468197,108340.0,108330.0,0.0012882]
[1756494058428,2.52905533,108340.0,108330.0,0.0012882]
[1756494058719,2.50468197,108340.0,108330.0,0.0002882]
[1756494059139,2.61456106,108340.0,108330.0,0.0002882]
[1756494059364,2.70993442,108340.0,108330.0,0.0002882]
[1756494059566,2.68556106,108340.0,108330.0,0.0002882]
[1756494060121,2.68656106,108340.0,108330.0,0.0002882]
[1756494060344,2.53060106,108340.0,108330.0,0.0002882]
[1756494060544,2.65030786,108340.0,108330.0,0.0002882]
[1756494060759,2.09739298,108340.0,108330.0,0.0002882]
[1756494061007,2.09939298,108340.0,108330.0,0.0002882]
[1756494061127,2.66177467,108340.0,108330.0,0.0002882]
[1756494061327,2.65877467,108340.0,108330.0,0.0002882]
[1756494061551,2.65677467,108340.0,108330.0,0.0002882]
[1756494061755,2.65777467,108340.0,108330.0,0.0002882]
[1756494062158,2.50185467,108340.0,108330.0,0.0002882]
[1756494062362,2.65777467,108340.0,108330.0,0.0002882]
[1756494062578,2.50185467,108340.0,108330.0,0.0002882]
[1756494062816,2.09939558,108340.0,108330.0,0.0002882]
[1756494063010,2.09938933,108340.0,108330.0,0.0002882]
[1756494063801,2.65876842,108340.0,108330.0,0.0002882]
[1756494065195,2.65876479,108340.0,108330.0,0.0002882]
[1756494065787,0.52462106,108330.0,108320.0,0.0002]
[1756494065993,2.60810358,108330.0,108320.0,0.0006773]
[1756494066233,2.61156358,108330.0,108320.0,0.0006773]
[1756494066439,2.61495822,108330.0,108320.0,0.0006773]
[1756494067037,7.63933158,108330.0,108320.0,0.0006773]
[1756494067288,0.18465515,108310.0,108300.0,0.14985633]
[1756494067523,1.94859779,108310.0,108300.0,0.14985633]
[1756494067739,1.79267779,108310.0,108300.0,0.14985633]
[1756494067954,1.97497779,108310.0,108300.0,0.14985633]
[1756494068193,1.97636779,108310.0,108300.0,0.14985633]
[1756494068771,1.97736779,108310.0,108300.0,0.14985633]
[1756494068942,1.95610902,108310.0,108300.0,0.14985633]
[1756494069171,0.83735084,108310.0,108300.0,0.14985633]
[1756494069325,1.80018902,108310.0,108300.0,0.14985633]
[1756494069681,1.95649902,108310.0,108300.0,0.14985633]
[1756494069881,1.95510902,108310.0,108300.0,0.14985633]
[1756494070083,1.95605783,108310.0,108300.0,0.14985633]
[1756494070317,1.95605783,108310.0,108300.0,0.15494633]
[1756494070530,1.95605783,108310.0,108300.0,0.15297633]
[1756494070715,1.95605783,108310.0,108300.0,0.15494633]
[1756494070914,1.95705783,108310.0,108300.0,0.15494633]
[1756494071137,1.99495281,108310.0,108300.0,0.15494633]
[1756494071368,1.83803281,108310.0,108300.0,0.14985633]
[1756494071509,1.99499281,108310.0,108300.0,0.14985633]
[1756494071710,1.99399281,108310.0,108300.0,0.14985633]
[1756494072031,1.99295281,108310.0,108300.0,0.15494633]
[1756494072424,1.99295281,108310.0,108300.0,0.15297633]
[1756494072735,1.99295281,108310.0,108300.0,0.14985633]
[1756494072736,1.83803281,108310.0,108300.0,0.14985633]
[1756494072908,1.99399281,108310.0,108300.0,0.14985633]
[1756494073110,1.95498194,108310.0,108300.0,0.15494633]
[1756494073308,1.88968484,108310.0,108300.0,0.15494633]
[1756494073538,1.88868484,108310.0,108300.0,0.15494633]
[1756494074927,1.89066484,108310.0,108300.0,0.15494633]
[1756494075124,1.87148736,108310.0,108300.0,0.15494633]
[1756494075357,1.73270905,108310.0,108300.0,0.15494633]
[1756494075550,1.88866905,108310.0,108300.0,0.15494633]
[1756494076637,1.17332996,108310.0,108300.0,0.15494633]
[1756494076843,0.27394499,108310.0,108300.0,0.15494633]
[1756494077051,0.82688094,108310.0,108300.0,0.15725473]
[1756494077416,1.16688094,108310.0,108300.0,0.15725473]
[1756494077745,0.0828467,108310.0,108300.0,0.62447003]
[1756494078046,0.98222579,108310.0,108300.0,0.62216163]
[1756494078260,0.64222579,108310.0,108300.0,0.62216163]
[1756494078435,0.98222579,108310.0,108300.0,0.62216163]
[1756494078906,0.59727407,108310.0,108300.0,0.62216163]
[1756494079318,0.93727407,108310.0,108300.0,0.62316163]
[1756494079523,1.12192922,108310.0,108300.0,0.46720163]
[1756494079726,1.12192922,108310.0,108300.0,0.58487485]
[1756494080094,1.12192922,108310.0,108300.0,0.58787485]
[1756494080505,0.93727407,108310.0,108300.0,0.58787485]
[1756494081496,0.55937909,108310.0,108300.0,0.58787485]
[1756494081896,0.55937909,108310.0,108300.0,0.58783485]
[1756494082553,0.55937909,108310.0,108300.0,0.43191485]
[1756494082750,0.55937909,108310.0,108300.0,0.58783485]
[1756494083130,0.32426432,108310.0,108300.0,0.58783485]
[1756494083348,0.55937909,108310.0,108300.0,0.43191485]
[1756494083549,0.55937909,108310.0,108300.0,0.58783485]
[1756494083906,0.55937909,108310.0,108300.0,0.40316265]
[1756494083907,0.78145743,108310.0,108300.0,0.40316265]
[1756494084693,0.78145743,108310.0,108300.0,0.24724265]
[1756494084889,0.78145743,108310.0,108300.0,0.40316265]
[1756494085567,1.68281652,108310.0,108300.0,0.15894633]
[1756494085746,1.70001934,108310.0,108300.0,0.30977633]
[1756494085948,1.72778634,108310.0,108300.0,0.30977633]
[1756494087103,1.72778634,108310.0,108300.0,0.15385633]
[1756494087104,1.88370634,108310.0,108300.0,0.15385633]
[1756494087743,1.89015943,108310.0,108300.0,0.15385633]
[1756494087956,2.34113943,108310.0,108300.0,0.15385633]
[1756494088359,2.45078485,108310.0,108300.0,0.15385633]
[1756494088787,2.45078485,108310.0,108300.0,0.15285633]
[1756494088933,2.45078485,108310.0,108300.0,0.14985633]
[1756494089140,2.45078485,108310.0,108300.0,0.15085633]
[1756494089331,2.45078485,108310.0,108300.0,0.15285633]
[1756494089575,2.45078485,108310.0,108300.0,0.15085633]
[1756494090181,2.45078485,108310.0,108300.0,0.14985633]
[1756494090582,2.43458114,108310.0,108300.0,0.14985633]
[1756494090926,2.45178701,108310.0,108300.0,0.14985633]
[1756494091136,2.45078701,108310.0,108300.0,0.14985633]
[1756494091364,2.45178701,108310.0,108300.0,0.14985633]
[1756494091552,2.45278701,108310.0,108300.0,0.14985633]
[1756494092135,2.29686701,108310.0,108300.0,0.14985633]
[1756494092437,2.45278701,108310.0,108300.0,0.14985633]
[1756494093250,2.4726036,108310.0,108300.0,0.14985633]
[1756494093906,2.4716036,108310.0,108300.0,0.14985633]
[1756494094135,2.4726036,108310.0,108300.0,0.14985633]
[1756494094795,2.4716036,108310.0,108300.0,0.14985633]
[1756494095006,2.4726036,108310.0,108300.0,0.14985633]
[1756494097311,2.44237926,108310.0,108300.0,0.14985633]
[1756494097625,2.26664267,108310.0,108300.0,0.15508633]
[1756494097834,2.42260267,108310.0,108300.0,0.14985633]
[1756494098030,2.42408267,108310.0,108300.0,0.14985633]
[1756494098236,2.42260267,108310.0,108300.0,0.14985633]
[1756494098505,2.42160267,108310.0,108300.0,0.14985633]
[1756494098839,2.42160267,108310.0,108300.0,0.15508633]
[1756494099049,2.40599869,108310.0,108300.0,0.15508633]
[1756494099252,2.24705869,108310.0,108300.0,0.15508633]
[1756494099459,2.40499869,108310.0,108300.0,0.15508633]
[1756494099657,2.40499869,108310.0,108300.0,0.15292633]
[1756494100061,2.49329501,108310.0,108300.0,0.15508633]
[1756494100841,2.49329501,108310.0,108300.0,0.14985633]
[1756494101052,2.46963694,108310.0,108300.0,0.14985633]
[1756494101248,2.49329274,108310.0,108300.0,0.14985633]
[1756494104766,2.33733274,108310.0,108300.0,0.14985633]
[1756494104967,2.49131274,108310.0,108300.0,0.15508633]
[1756494105173,2.24705642,108310.0,108300.0,0.15508633]
[1756494105414,2.40301642,108310.0,108300.0,0.15508633]
[1756494105616,2.43084978,108310.0,108300.0,0.14985633]
[1756494105839,2.45959412,108310.0,108300.0,0.14985633]
[1756494106058,2.40647642,108310.0,108300.0,0.14985633]
[1756494106261,2.49477274,108310.0,108300.0,0.14985633]
[1756494106464,2.49329274,108310.0,108300.0,0.14985633]
[1756494106669,2.49477274,108310.0,108300.0,0.14985633]
[1756494107093,0.1846722,108300.0,108290.0,0.04092635]
[1756494107267,1.48502618,108300.0,108290.0,0.04092635]
[1756494108024,1.51279918,108300.0,108290.0,0.04092635]
[1756494108229,1.57852258,108300.0,108290.0,0.04092635]
[1756494108433,1.58000258,108300.0,108290.0,0.04292635]
[1756494108711,1.57852258,108300.0,108290.0,0.04292635]
[1756494109334,1.57852258,108300.0,108290.0,0.04392635]
[1756494109537,1.6668189,108300.0,108290.0,0.04392635]
[1756494109713,1.6668189,108300.0,108290.0,0.04192635]
[1756494109918,1.6668189,108300.0,108290.0,0.04092635]
[1756494111017,0.18472337,108270.0,108260.0,0.20631288]
[1756494111217,0.74410246,108270.0,108260.0,0.2946092]
[1756494111426,0.74410246,108270.0,108260.0,0.2966392]
[1756494112316,0.9278194,108280.0,108270.0,0.18472337]
[1756494112519,0.78954938,108280.0,108270.0,0.18675337]
[1756494112658,0.78954938,108280.0,108270.0,0.00203]
[1756494112869,0.78954938,108280.0,108270.0,0.00433904]
[1756494113058,0.78954938,108280.0,108270.0,0.00743904]
[1756494113252,0.78954938,108280.0,108270.0,0.19216241]
[1756494113482,0.78954938,108280.0,108270.0,0.00813]
[1756494113705,0.78954938,108280.0,108270.0,0.19616241]
[1756494113911,0.78954938,108280.0,108270.0,0.19385337]
[1756494114608,0.78954938,108280.0,108270.0,0.00913]
[1756494114770,0.23017029,108280.0,108270.0,0.19616241]
[1756494115016,0.78954938,108280.0,108270.0,0.19385337]
[1756494115784,0.23017029,108280.0,108270.0,0.19385337]
[1756494115982,0.78954938,108280.0,108270.0,0.19385337]
[1756494117002,0.78954938,108280.0,108270.0,0.00913]
[1756494117202,0.78954938,108280.0,108270.0,0.01143904]
[1756494118061,0.79602224,108280.0,108270.0,0.04204386]
[1756494118255,0.79602224,108280.0,108270.0,0.01143904]
[1756494119443,0.79602224,108280.0,108270.0,0.16509]
[1756494120114,0.79602224,108280.0,108270.0,0.16739904]
[1756494120519,0.79811224,108280.0,108270.0,0.16509]
[1756494120735,0.79602224,108280.0,108270.0,0.16509]
[1756494121063,0.79602224,108280.0,108270.0,0.00913]
[1756494121232,0.79602224,108280.0,108270.0,0.16509]
[1756494121461,0.79816614,108280.0,108270.0,0.16509]
[1756494121831,0.79816368,108280.0,108270.0,0.16509]
[1756494122043,0.79816368,108280.0,108270.0,0.00913]
[1756494122246,0.79607368,108280.0,108270.0,0.00913]
[1756494122466,0.95412368,108280.0,108270.0,0.00913]
[1756494123128,0.23669459,108280.0,108270.0,0.05294257]
[1756494123341,0.39265459,108280.0,108270.0,0.23997498]
[1756494123533,0.95203368,108280.0,108270.0,0.05294257]
[1756494123745,0.79607368,108280.0,108270.0,0.05294257]
[1756494123901,0.04551386,108280.0,108270.0,0.28445873]
[1756494124102,0.04551386,108280.0,108270.0,0.09742632]
[1756494124103,0.76182526,108280.0,108270.0,0.09742632]
[1756494124303,0.74456259,108280.0,108270.0,0.28445873]
[1756494124515,0.7618243,108280.0,108270.0,0.25346632]
[1756494126381,0.7618243,108280.0,108270.0,0.25342632]
[1756494128107,0.20244521,108280.0,108270.0,0.25342632]
[1756494128300,0.20453521,108280.0,108270.0,0.25342632]
[1756494128499,0.7639143,108280.0,108270.0,0.25342632]
[1756494129252,0.7639143,108280.0,108270.0,0.16509]
[1756494130220,0.20244521,108280.0,108270.0,0.16509]
[1756494130423,0.7639143,108280.0,108270.0,0.16739904]
[1756494130991,0.7639143,108280.0,108270.0,0.35212241]
[1756494131137,0.7639143,108280.0,108270.0,0.34981337]
[1756494131342,0.7618243,108280.0,108270.0,0.34981337]
[1756494131553,0.76182031,108280.0,108270.0,0.34981337]
[1756494132075,0.76182045,108280.0,108270.0,0.16509]
[1756494132439,0.76182045,108280.0,108270.0,0.16739904]
[1756494132651,0.76182045,108280.0,108270.0,0.00913]
[1756494132849,0.76391045,108280.0,108270.0,0.16509]
[1756494134125,0.77038358,108280.0,108270.0,0.16509]
[1756494134872,0.77038833,108280.0,108270.0,0.16509]
[1756494135274,0.77038833,108280.0,108270.0,0.16199]
[1756494135478,1.48872742,108280.0,108270.0,0.004]
[1756494135699,0.92934833,108280.0,108270.0,0.004]
[1756494136618,0.95712333,108280.0,108270.0,0.004]
[1756494141347,1.94479874,108280.0,108270.0,0.004]
[1756494141723,1.921063,108280.0,108270.0,0.004]
[1756494142006,1.94479996,108280.0,108270.0,0.004]
[1756494142374,0.52474043,108260.0,108250.0,0.00034]
[1756494142552,0.52477457,108240.0,108230.0,0.01]
[1756494142743,0.52479164,108230.0,108220.0,0.0002]
[1756494142969,0.0172633,108230.0,108220.0,0.07449]
[1756494143263,0.57664239,108230.0,108220.0,0.41791872]
[1756494143472,0.57664239,108230.0,108220.0,0.26127872]
[1756494143702,0.76143403,108230.0,108220.0,0.20671366]
[1756494143909,0.76191092,108230.0,108220.0,0.32160632]
[1756494144116,0.76191092,108230.0,108220.0,0.34957504]
[1756494144322,1.74151319,108230.0,108220.0,0.0032]
[1756494144543,1.8021684,108230.0,108220.0,0.0032]
[1756494144753,1.82310722,108230.0,108220.0,0.0042]
[1756494144967,1.94130874,108230.0,108220.0,0.0042]
[1756494145166,1.85301242,108230.0,108220.0,0.0002]
[1756494145440,1.85301242,108230.0,108210.0,0.00587151]
[1756494145441,0.18480872,108220.0,108210.0,0.00587151]
[1756494145660,0.54579878,108190.0,108180.0,1e-08]
[1756494145880,0.54583296,108170.0,108160.0,0.1214395]
[1756494146020,0.92815588,108170.0,108160.0,0.1214395]
[1756494146232,0.36371679,108170.0,108160.0,0.46890074]
[1756494146431,0.91870239,108170.0,108160.0,0.30635074]
[1756494146642,0.3871333,108170.0,108160.0,0.46375074]
[1756494146840,0.3871333,108170.0,108160.0,0.55727706]
[1756494146841,0.0450733,108170.0,108160.0,0.55727706]
[1756494147064,0.0450733,108170.0,108160.0,0.39987706]
[1756494147065,0.0004763,108170.0,108160.0,0.39987706]
[1756494147251,1.10594137,108170.0,108160.0,0.20973582]
[1756494147454,1.18462738,108170.0,108160.0,0.1214395]
[1756494147656,1.74500647,108170.0,108160.0,0.1214395]
[1756494147872,0.45929297,108170.0,108160.0,0.1214395]
[1756494148065,0.99673324,108170.0,108160.0,0.1214395]
[1756494148357,0.99331967,108170.0,108160.0,0.1214395]
[1756494148540,0.01760814,108170.0,108160.0,0.1296695]
[1756494148740,0.01760814,108170.0,108160.0,0.2007495]
[1756494148967,0.01760814,108170.0,108160.0,1.03333615]
[1756494149181,0.0004763,108170.0,108160.0,0.47395706]
[1756494149392,0.55985539,108170.0,108160.0,0.63299706]
[1756494149598,0.01755039,108170.0,108160.0,0.57999706]
[1756494149820,0.01755039,108170.0,108160.0,1.48037615]
[1756494150033,0.10482732,108230.0,108200.0,0.00924214]
[1756494150238,0.08919513,108230.0,108220.0,0.00198]
[1756494150450,0.30178072,108230.0,108220.0,0.00198]
[1756494150643,0.27604872,108230.0,108220.0,0.15948]
[1756494150849,0.18480872,108220.0,108210.0,0.23052]
[1756494151145,0.20188955,108220.0,108210.0,0.2325]
[1756494151344,0.20694955,108220.0,108210.0,0.07108]
[1756494151491,0.01708083,108220.0,108210.0,0.4207358]
[1756494151694,0.01708083,108220.0,108210.0,0.42082389]
[1756494151891,0.18480872,108220.0,108210.0,0.41757389]
[1756494152092,0.20395429,108220.0,108210.0,0.07116809]
[1756494152296,1.20013641,108220.0,108210.0,8.809e-05]
[1756494152536,1.36629962,108220.0,108210.0,8.809e-05]
[1756494152963,1.38723844,108220.0,108210.0,8.809e-05]
[1756494153177,0.64343295,108220.0,108210.0,8.809e-05]
[1756494153426,1.20353962,108220.0,108210.0,0.00208809]
[1756494153637,0.01708283,108220.0,108210.0,0.77918938]
[1756494153841,0.01708283,108220.0,108210.0,0.28144021]
[1756494154263,0.18479179,108230.0,108210.0,0.28144021]
[1756494154471,0.01914597,108240.0,108220.0,0.34484872]
[1756494154718,0.20392054,108240.0,108230.0,0.00523]
[1756494154929,0.78796603,108240.0,108230.0,0.16202]
[1756494155140,1.12796603,108240.0,108230.0,0.16004]
[1756494155371,1.12796603,108240.0,108230.0,0.35006164]
[1756494155372,0.01914597,108240.0,108230.0,0.35006164]
[1756494155585,0.18472337,108270.0,108240.0,0.19398328]
[1756494155799,0.18474222,108260.0,108250.0,0.16016]
[1756494156037,0.55250361,108270.0,108250.0,0.3501475]
[1756494156247,0.77084592,108260.0,108240.0,0.27304088]
[1756494156454,0.18680043,108260.0,108250.0,0.16016]
[1756494156669,0.25343849,108270.0,108250.0,0.3491475]
[1756494156875,0.83748398,108270.0,108250.0,0.3491475]
[1756494157081,0.83748398,108270.0,108250.0,0.34923559]
[1756494157289,0.77084592,108260.0,108250.0,0.16340809]
[1756494157497,0.76878592,108260.0,108250.0,0.16340809]
[1756494157897,0.18474043,108260.0,108250.0,0.16340809]
[1756494158124,0.18474043,108260.0,108250.0,0.34816559]
[1756494158298,0.18474043,108260.0,108250.0,0.16340809]
[1756494158706,0.77084592,108260.0,108250.0,0.16340809]
[1756494158914,0.77084592,108260.0,108250.0,8.809e-05]
[1756494159112,0.77084592,108260.0,108250.0,0.16340809]
[1756494159328,0.2591511,108270.0,108250.0,0.35339559]
[1756494159521,0.18474043,108260.0,108250.0,0.35039559]
[1756494159930,0.18474043,108260.0,108250.0,0.35439559]
[1756494160132,0.18474043,108260.0,108250.0,0.35039559]
[1756494160334,0.18474043,108260.0,108250.0,0.16563809]
[1756494160536,0.77084592,108260.0,108250.0,0.16440809]
[1756494160742,0.76878592,108260.0,108250.0,0.16440809]
[1756494161390,0.18474043,108260.0,108250.0,0.35439559]
[1756494161625,0.2581511,108270.0,108250.0,0.35439559]
[1756494161626,1.15061134,108270.0,108250.0,0.35439559]
[1756494161846,0.81061134,108270.0,108260.0,0.18474043]
[1756494162058,0.00482608,108270.0,108260.0,0.93339224]
[1756494162263,0.18468926,108290.0,108270.0,0.19394967]
[1756494162481,0.027772,108290.0,108280.0,0.35033631]
[1756494162690,0.76872042,108300.0,108280.0,0.35033631]
[1756494162890,0.79649142,108300.0,108280.0,0.43863263]
[1756494163306,0.61181649,108300.0,108290.0,0.18468926]
[1756494163514,0.367771,108300.0,108290.0,0.18666926]
[1756494163723,1.13648869,108300.0,108290.0,0.00198]
[1756494163933,0.027771,108300.0,108290.0,0.26330787]
[1756494164143,0.58404549,108310.0,108300.0,0.18466105]
[1756494164346,0.79646664,108310.0,108300.0,0.34696105]
[1756494164549,0.79694383,108310.0,108300.0,0.34696105]
[1756494164736,0.79694383,108310.0,108300.0,0.1623]
[1756494164944,0.55289834,108310.0,108300.0,0.1623]
[1756494165145,0.02824319,108310.0,108300.0,0.44082692]
[1756494165292,0.00047719,108310.0,108300.0,0.43851852]
[1756494165687,0.00047719,108310.0,108300.0,0.43951852]
[1756494166281,0.01757396,108310.0,108300.0,1.02356401]
[1756494166488,0.01757351,108310.0,108300.0,1.02356401]
[1756494166704,0.01757351,108310.0,108300.0,0.43951852]
[1756494166910,0.01757351,108310.0,108300.0,1.42356401]
[1756494167168,0.01757351,108310.0,108300.0,1.42456401]
[1756494167947,0.01757351,108310.0,108300.0,0.84051852]
[1756494168159,0.01757351,108310.0,108300.0,1.78550283]
[1756494168378,0.00047719,108310.0,108300.0,1.78550283]
[1756494168613,0.00047719,108310.0,108300.0,1.88350283]
[1756494168835,0.00047719,108310.0,108300.0,1.88650283]
[1756494169059,0.00047719,108310.0,108300.0,1.89146283]
[1756494169270,0.00047719,108310.0,108300.0,1.88646283]
[1756494169409,0.00047719,108310.0,108300.0,1.72618283]
[1756494169620,0.00047719,108310.0,108300.0,1.89346283]
[1756494169822,0.00047719,108310.0,108300.0,1.73318283]
[1756494170226,0.00047719,108310.0,108300.0,1.89342283]
[1756494170440,0.00047719,108310.0,108300.0,1.14913734]
[1756494170623,0.00047719,108310.0,108300.0,1.73018283]
[1756494170824,0.00047719,108310.0,108300.0,1.89038283]
[1756494171059,0.00047719,108310.0,108300.0,1.89338283]
[1756494171261,0.00047719,108310.0,108300.0,1.73318283]
[1756494171465,0.00047719,108310.0,108300.0,1.89334283]
[1756494171689,1e-08,108310.0,108300.0,1.89334283]
[1756494172607,1e-08,108310.0,108300.0,1.89326283]
[1756494173127,0.0175,108330.0,108320.0,0.1]
[1756494173336,0.0725143,108370.0,108360.0,0.18456995]
[1756494173536,0.25909722,108370.0,108360.0,0.15933632]
[1756494173779,0.84612271,108370.0,108360.0,0.31941632]
[1756494173977,0.0775243,108370.0,108360.0,0.50398627]
[1756494174180,0.0745443,108370.0,108360.0,0.50398627]
[1756494174393,0.77102841,108370.0,108360.0,0.15933632]
[1756494174601,0.77102841,108370.0,108360.0,0.31937632]
[1756494174798,0.77102841,108370.0,108360.0,0.15933632]
[1756494175017,0.77400841,108370.0,108360.0,0.31933632]
[1756494175586,0.77400841,108370.0,108360.0,0.15933632]
[1756494175784,1.11400841,108370.0,108360.0,0.23104]